Cogmind - Beta 13 @@@ ROGUE MODE // 2024.04.26 @ 10:57:13 Player: Florist Result: Destroyed by B-48 Gladiator with Mace Performance ------------- Evolutions (4) 2000 Regions Visited (10) 2000 Robots Destroyed (137) 685 Value Destroyed (7665) 7665 Prototype IDs (0) 0 Alien Tech Used (0) 0 Bonus (4122) 4122 TOTAL SCORE: 16472 Bonus ------- High Alert Combat Kills 1794 Follower Combat Kills 928 Entered Garrisons 400 Used RIF Installer 1000 Cogmind --------- Core Integrity 0/850 Matter 264/300 Energy 150/150 System Corruption 9% Temperature Cool (0) Movement Treading (170) Location -6/Factory Parts ------- > --- POWER (1) -------- Light Angular Momentum Engine > --- PROPULSION (4) --- Armored Treads Armored Treads Armored Treads > --- UTILITY (6) ------ Advanced Heat Sink Advanced Heat Sink Medium Storage Unit Targeting Computer Advanced Targeting Computer Improved Propulsion Shielding > --- WEAPON (4) ------- Thermic Laser Thermic Laser Heavy Assault Cannon > --- INVENTORY (10) --- Compact Battery (200) Plasma Rifle Improved Remote Datajack Improved Plasma Cutter Powered Hammer Peak State ------------ > --- POWER ------------ Light Angular Momentum Engine > --- PROPULSION ------- Gravmag System Gravmag System Gravmag Array > --- UTILITY ---------- Advanced Targeting Computer Advanced Targeting Computer Advanced Targeting Computer Improved Phase Shifter Relay Coupler [Grunt] Relay Coupler [Sentry] > --- WEAPON ----------- Improved Remote Datajack Heavy Mace > --- INVENTORY -------- Compact Battery Relay Coupler [Swarmer] Relay Coupler [Sentry] Improved Remote Datajack [Rating: 56] Favorites ----------- Power Light Antimatter Reactor Engine Improved Ion Engine Power Core Light Nuclear Core Reactor Light Antimatter Reactor Propulsion Light Treads Treads Light Treads Leg Aluminum Leg Hover Unit Gravmag System Flight Unit VTOL Module Utility Advanced Targeting Computer Device Improved Heat Sink Storage High-capacity Storage Unit Processor Advanced Targeting Computer Hackware Relay Coupler [Sentry] Protection Improved Medium Armor Plating Weapon Heavy Mace Energy Gun Lightning Gun Ballistic Gun Heavy Assault Rifle Ballistic Cannon Heavy Assault Cannon Special Weapon Improved Remote Datajack Impact Weapon Heavy Mace Build | -11 -10 -9 -8 -7 -7 -6 -6 -6 -6 -6 ------- Run | Yrd Mat Mat Mat Fac Gar Fac Was Fac Gar Fac Slots Evolved 8 | . . 2 2 2 . 2 . . . . Power . | . . . . . . . . . . . Propulsion 2 | . . . 1 . . 1 . . . . Utility 4 | . . 1 . 2 . 1 . . . . Weapon 2 | . . 1 1 . . . . . . . Parts Attached 207 | 5 3 14 14 23 64 2 . 1 58 23 Power 19 | . 1 2 1 1 6 . . . 7 1 Engine 10 | . 1 2 1 1 . . . . 4 1 Core 6 | . . . . . 4 . . . 2 . Reactor 3 | . . . . . 2 . . . 1 . Propulsion 53 | 2 . 2 5 4 18 . . 1 15 6 Treads 22 | 2 . 2 5 4 3 . . . . 6 Leg 9 | . . . . . 9 . . . . . Wheel . | . . . . . . . . . . . Hover 5 | . . . . . 3 . . 1 1 . Flight 17 | . . . . . 3 . . . 14 . Utility 65 | 1 2 4 3 11 17 2 . . 16 9 Device 18 | . . . . 4 4 . . . 5 5 Storage 3 | 1 . 1 . . . . . . . 1 Processor 4 | . . . . 1 2 . . . . 1 Hackware 13 | . . . . . 1 2 . . 9 1 Protection 27 | . 2 3 3 6 10 . . . 2 1 Artifact . | . . . . . . . . . . . Weapon 70 | 2 . 6 5 7 23 . . . 20 7 Energy Gun 16 | . . . 2 2 5 . . . 2 5 Energy Cannon . | . . . . . . . . . . . Ballistic Gun 32 | 2 . 6 3 5 10 . . . 6 . Ballistic Cannon 5 | . . . . . . . . . 4 1 Launcher . | . . . . . . . . . . . Special Weapon 12 | . . . . . 3 . . . 8 1 Impact Weapon 5 | . . . . . 5 . . . . . Slashing Weapon . | . . . . . . . . . . . Piercing Weapon . | . . . . . . . . . . . Special Melee Weapon . | . . . . . . . . . . . Unidentified Prototypes . | . . . . . . . . . . . Corrupted Parts 2 | . . . . . 1 . . . 1 . System Corruption 3 | . . . . . 1 . . . 2 . Parts Lost 58 | . . . 1 3 27 . . . 22 5 Power 5 | . . . 1 . 2 . . . 1 1 Propulsion 20 | . . . . . 7 . . . 12 1 Utility 12 | . . . . 1 7 . . . 4 . Weapon 21 | . . . . 2 11 . . . 5 3 Highest Loss Streak 7 | . . . 1 2 7 . . . 5 2 To Critical Strikes . | . . . . . . . . . . . Average Slot Usage (%) 88 | . 85 100 99 98 90 74 80 80 68 79 Engine 3 | . 11 11 8 7 . . . . 1 1 Core 1 | . . . . . 2 . . . . . Reactor 2 | . . . . . 3 6 6 6 2 3 Treads 11 | . 28 22 27 22 5 . . . . 16 Leg 6 | . . . . . 14 . . . . . Hover 1 | . . . . . . 20 20 20 3 . Flight 3 | . . . . . . . . . 18 8 Device 6 | . . . . 7 11 6 . . 3 6 Storage 6 | . 14 11 9 7 6 . . . . 3 Processor 6 | . . . . 6 7 20 20 20 11 7 Hackware 3 | . . . . . . 7 20 20 15 12 Protection 10 | . 3 22 18 14 9 . . . . . Energy Gun 4 | . . . 9 9 5 . . . . 9 Ballistic Gun 14 | . 28 33 26 19 12 . . . 1 . Special Weapon 1 | . . . . . . 6 6 6 4 3 Impact Weapon 3 | . . . . . 6 6 6 6 1 . Naked Turns . | . . . . . . . . . . . Heaviest Build 77 | 9 19 70 71 74 77 20 18 18 34 43 Greatest Support 80 | 40 40 40 60 60 60 27 27 38 38 80 Greatest Overweight (x) 19 | . . 1 1 1 19 . . . 3 1 Average Overweight (x) . | . . . 1 . 1 . . . . . Largest Inventory Capacity 20 | 8 8 20 20 20 20 5 5 5 5 10 Average Capacity 14 | 7 8 10 20 20 19 5 5 5 5 8 Most Carried 20 | 4 8 14 20 20 14 5 5 5 5 6 Average Carried 9 | 2 5 8 16 15 9 4 4 4 3 4 Final Capacity 20 | 8 8 20 20 20 5 5 5 5 5 10 Final Carried 19 | 4 8 14 19 11 5 4 5 5 5 5 Class Distribution -------------------- 51% | Scavenger-Tank 20% | Scavenger-Mutant 8% | Scavenger-Gunner 7% | Mutant 4% | Tank Dominant Class ---------------- Mutant | -10/Materials Scavenger-Tank | -9/Materials Scavenger-Tank | -8/Materials Scavenger-Tank | -7/Factory Scavenger-Tank | -7/Garrison Scavenger-Mutant | -6/Factory Scavenger-Mutant | -6/Waste Scavenger-Mutant | -6/Factory Scavenger-Mutant | -6/Garrison Scavenger-Gunner | -6/Factory Resources | -11 -10 -9 -8 -7 -7 -6 -6 -6 -6 -6 ----------- Run | Yrd Mat Mat Mat Fac Gar Fac Was Fac Gar Fac Matter Collected 6041 | 225 185 600 875 475 1706 . . 105 1340 530 Remotely . | . . . . . . . . . . . Salvage Created 6064 | . 224 783 946 494 1830 . . . 435 1352 Parts 260 | . 15 51 50 30 62 . . . 21 31 Haulers Intercepted . | . . . . . . . . . . . Recyclers Shooed 9 | . 1 1 . . . . . . . 7 Parts Field Recycled . | . . . . . . . . . . . Retrieved Matter . | . . . . . . . . . . . Parts Self-Destructed . | . . . . . . . . . . . Prevented . | . . . . . . . . . . . Kills | -11 -10 -9 -8 -7 -7 -6 -6 -6 -6 -6 ------- Run | Yrd Mat Mat Mat Fac Gar Fac Was Fac Gar Fac Combat Hostiles Destroyed 120 | . 4 16 17 13 38 . . . 17 15 Melee 10 | . . . . . 6 . . . 4 . Guns 86 | . 4 16 17 13 28 . . . 7 1 Cannons 10 | . . . . . . . . . 2 8 AOE 4 | . . . . . . . . . 1 3 Classes Destroyed 14 | . 2 5 2 1 1 . . . 2 1 Worker 1 | . . . . . . . . . . 1 Recycler 9 | . 1 1 1 . . . . . . 6 Operator 1 | . . 1 . . . . . . . . Watcher 6 | . . 3 3 . . . . . . . Swarmer 36 | . . 5 3 6 10 . . . 12 . Saboteur 2 | . . . . . . . . . 1 1 Grunt 45 | . 4 3 6 4 16 . . . 2 10 Brawler 2 | . . 1 . . . . . . . 1 Duelist 3 | . . . 1 . . . . . . 2 Sentry 17 | . . 7 5 1 3 . . . 1 . Specialist 1 | . . . . . 1 . . . . . Hunter 2 | . . . 2 . . . . . . . Programmer 11 | . . . . 2 8 . . . . 1 Behemoth 1 | . . . . . . . . . 1 . Best Kill Streak 9 | . 3 4 4 8 8 . . . 4 9 Combat Bots Only 8 | . 2 4 4 8 8 . . . 4 6 Max Kills in Single Turn 3 | . 1 2 2 1 2 . . . 2 3 Gunslinging 1 | . . 1 1 . 1 . . . . . Exploded 3 | . . . . . . . . . 1 3 Melee 1 | . . . . . 1 . . . 1 . Uniques/NPCs Destroyed . | . . . . . . . . . . . Combat | -11 -10 -9 -8 -7 -7 -6 -6 -6 -6 -6 -------- Run | Yrd Mat Mat Mat Fac Gar Fac Was Fac Gar Fac Hostile Shots Fired 1152 | . 30 69 91 94 490 9 . 1 263 105 Missed 323 | . 12 14 20 29 130 7 . 1 84 26 Damage Taken 12382 | . 209 731 1024 1131 5340 24 . . 2170 1753 Core 1611 | . 31 24 76 72 558 . . . 678 172 Absorbed by Shields 87 | . . . . . . . . . 87 . Redirected to Shielding 24 | . . . . . . . . . . 24 Core Remaining (%) 75 | 100 87 94 86 . 10 . . . . . Volleys Fired 446 | . 27 48 52 28 99 1 . 15 113 63 Largest 4 | . 2 3 4 4 4 1 . 1 3 3 Hottest 230 | . 40 69 150 161 191 5 . 5 161 230 Shots Fired 1023 | . 54 144 208 94 251 1 . 15 135 121 Gun 916 | . 54 144 208 94 249 . . . 84 83 Cannon 34 | . . . . . . . . . 6 28 Launcher . | . . . . . . . . . . . Special 73 | . . . . . 2 1 . 15 45 10 Kinetic 770 | . 54 144 202 76 180 . . . 86 28 Thermal 147 | . . . . . 57 . . . 7 83 Explosive . | . . . . . . . . . . . Electromagnetic 36 | . . . 6 18 12 . . . . . Robot Hit Streak 27 | . 6 11 27 20 20 8 . 10 24 23 Robot Miss Streak 6 | . 2 3 4 6 5 . . 1 3 3 Penetration Max 1 | . . . . 1 1 . . . . . Secondary Targets 12 | . . 3 2 . 7 . . . . . Max Gunslinging Chain 1 | . . 1 1 . 1 . . . . . Shots Hit Robots 779 | . 39 92 135 67 216 1 . 14 119 96 Core Hits 289 | . 13 33 49 46 78 . . . 39 31 Critical Kills 1 | . . . . 1 . . . . . . Critical Parts Destroyed 13 | . . . 1 2 9 . . . 1 . Critical Strikes 38 | . . 1 1 3 10 . . . 2 21 Burn 15 | . . . . . . . . . . 15 Destroy 8 | . . 1 1 3 3 . . . . . Blast 7 | . . . . . . . . . 1 6 Corrupt 1 | . . . . . 1 . . . . . Smash 7 | . . . . . 6 . . . 1 . Melee Attacks 427 | . . . . . 363 . . 2 62 . Impact 427 | . . . . . 363 . . 2 62 . Slashing . | . . . . . . . . . . . Piercing . | . . . . . . . . . . . Sneak Attacks 1 | . . . . . . . . 1 . . Combat Hostiles . | . . . . . . . . . . . Follow-up Attacks . | . . . . . . . . . . . Damage Inflicted 15015 | . 462 1213 1767 1167 5280 . . 70 2031 3025 Guns 10043 | . 462 1213 1767 1167 3244 . . . 1080 1110 Cannons 1570 | . . . . . . . . . 208 1362 Explosions 649 | . . . . . . . . . 96 553 Melee 2753 | . . . . . 2036 . . 70 647 . Ramming . | . . . . . . . . . . . Kinetic 9346 | . 462 1213 1669 1035 2317 . . . 1288 1362 Thermal 1902 | . . . . . 792 . . . . 1110 Explosive 649 | . . . . . . . . . 96 553 Electromagnetic 365 | . . . 98 132 135 . . . . . Impact 2753 | . . . . . 2036 . . 70 647 . Slashing . | . . . . . . . . . . . Piercing . | . . . . . . . . . . . Highest Corruption 14 | . . . . 2 14 . 6 6 8 9 Average Corruption 7 | . . . . 1 8 . 6 6 7 8 Corruption Purged . | . . . . . . . . . . . Corruption Blocked . | . . . . . . . . . . . Effects 366 | . . . . 9 232 . 1 2 85 37 Message Errors 93 | . . . . 2 58 . . 2 21 10 Matter Fused 92 | . . . . 4 60 . . . 22 6 Heat Flow Errors 44 | . . . . 2 24 . . . 13 5 Energy Discharges 55 | . . . . . 37 . 1 . 10 7 Parts Rejected 1 | . . . . . 1 . . . . . Parts Fused 1 | . . . . . 1 . . . . . Data Loss (minor) 42 | . . . . . 26 . . . 11 5 Data Loss (major) 12 | . . . . . 8 . . . 3 1 Misfires 9 | . . . . . 9 . . . . . Alerts 10 | . . . . 1 4 . . . 5 . Weapon Failures 7 | . . . . . 4 . . . . 3 Overload Shots . | . . . . . . . . . . . Overflow Damage 843 | . . . . . 481 . . . 190 172 Projectiles 127 | . . . . . . . . . . 127 Explosions 45 | . . . . . . . . . . 45 Melee 671 | . . . . . 481 . . . 190 . Knockbacks 31 | . . . . . 10 . . . 8 13 Impact 17 | . . . . . 9 . . . 8 . Kinetic 12 | . . . . . . . . . . 12 Secondary 2 | . . . . . 1 . . . . 1 Self-Inflicted Damage 184 | . . . . . . . . . . 184 Shots 2 | . . . . . . . . . . 2 Rammed . | . . . . . . . . . . . Targets Rammed . | . . . . . . . . . . . Kicked . | . . . . . . . . . . . Crushed . | . . . . . . . . . . . Highest Temperature 455 | . 2 81 399 455 301 . . . 269 410 Average Temperature 96 | . 2 27 103 150 85 . . . 89 138 Received Heat Transfer 3025 | . 117 273 279 111 1266 12 . . 339 628 Effects 10 | . . . 3 2 . . . . 1 4 Shutdowns 1 | . . . 1 . . . . . . . Energy Bleed 5 | . . . . 1 . . . . 1 3 Interference 1 | . . . . 1 . . . . . . Matter Decay 1 | . . . 1 . . . . . . . Short Circuit 1 | . . . . . . . . . . 1 Damage (minor) 1 | . . . 1 . . . . . . . Siege Activations . | . . . . . . . . . . . Robots Corrupted . | . . . . . . . . . . . Combat Hostiles . | . . . . . . . . . . . Parts Fried 8 | . . . 1 . 7 . . . . . Impact Corruptions 27 | . . . . . 18 . . . 9 . Robots Melted 6 | . . . . . . . . . . 6 Combat Hostiles 3 | . . . . . . . . . . 3 Parts Melted 11 | . . . . . 1 . . . . 10 Heat Transferred 6025 | . . . . . 1500 . . . . 4525 Parts Sabotaged 4 | . . . . . . . . . 4 . Parts Stolen . | . . . . . . . . . . . Parts Stripped . | . . . . . . . . . . . Power Chain Reactions . | . . . . . . . . . . . Alert | -11 -10 -9 -8 -7 -7 -6 -6 -6 -6 -6 ------- Run | Yrd Mat Mat Mat Fac Gar Fac Was Fac Gar Fac Peak Influence 5162 | . 110 212 261 150 5162 2724 953 700 1984 1652 Initial 2709 | . . . 57 15 107 2709 953 639 490 1041 Average 1381 | . 56 93 111 36 2443 2710 936 672 1200 1342 Maximum Alert Level 5 | . . 1 1 . 5 5 3 3 5 5 Low Security (%) 31 | 100 100 95 83 100 1 . . . . . Level 1 4 | . . 4 16 . 4 . . . . . Level 2 7 | . . . . . 12 . . 55 8 . Level 3 12 | . . . . . 12 . 100 44 36 5 Level 4 14 | . . . . . 6 . . . 39 93 Level 5 30 | . . . . . 63 100 . . 15 1 High Security . | . . . . . . . . . . . Max Security . | . . . . . . . . . . . Squads Dispatched 16 | . 1 2 2 4 . . . 1 . 6 Investigation 5 | . . 2 2 . . . . . . 1 Extermination 3 | . . . . 2 . . . . . 1 Reinforcement 4 | . 1 . . 1 . . . 1 . 1 Assault 3 | . . . . . . . . . . 3 Garrison 1 | . . . . 1 . . . . . . Intercept . | . . . . . . . . . . . Searches Triggered . | . . . . . . . . . . . Construction Impeded . | . . . . . . . . . . . Haulers Reinforced 1 | . . . . . . . . 1 . . Active Scanning Responses . | . . . . . . . . . . . Cargo Convoy Interrupts . | . . . . . . . . . . . Stealth | -11 -10 -9 -8 -7 -7 -6 -6 -6 -6 -6 --------- Run | Yrd Mat Mat Mat Fac Gar Fac Was Fac Gar Fac Distress Signals 8 | . . 2 3 2 . . . . 1 . Communications Jammed . | . . . . . . . . . . . Distress Signals . | . . . . . . . . . . . Times Spotted 225 | . 10 24 29 21 40 1 6 6 48 40 Peak Tracking Total 9 | . 3 5 4 9 6 1 6 5 7 7 Tactical Retreats 15 | . . 3 1 1 3 . 1 . 4 2 Traps | -11 -10 -9 -8 -7 -7 -6 -6 -6 -6 -6 ------- Run | Yrd Mat Mat Mat Fac Gar Fac Was Fac Gar Fac Traps Triggered 31 | . . 2 2 3 9 1 . . 13 1 Indirectly . | . . . . . . . . . . . Trap Hack Attempts . | . . . . . . . . . . . Triggered . | . . . . . . . . . . . Disarmed . | . . . . . . . . . . . Reprogrammed . | . . . . . . . . . . . Reused . | . . . . . . . . . . . Traps Extracted . | . . . . . . . . . . . Installed . | . . . . . . . . . . . Triggered . | . . . . . . . . . . . Machines | -11 -10 -9 -8 -7 -7 -6 -6 -6 -6 -6 ---------- Run | Yrd Mat Mat Mat Fac Gar Fac Was Fac Gar Fac Machines Disabled 27 | . . . . . 10 . . . 8 9 Max in Single Turn 2 | . . . . . 1 . . . 2 2 Garrison Relay 14 | . . . . . 9 . . . 5 . Phase Generator 1 | . . . . . . . . . 1 . Machines Repaired . | . . . . . . . . . . . Machines Dismantled 1 | . . . . . . . . . 1 . Machines Sabotaged . | . . . . . . . . . . . Overloaded Fab Kills . | . . . . . . . . . . . Hacking | -11 -10 -9 -8 -7 -7 -6 -6 -6 -6 -6 --------- Run | Yrd Mat Mat Mat Fac Gar Fac Was Fac Gar Fac Machines Accessed 26 | . . 10 4 2 3 . . 3 3 1 Terminals 20 | . . 10 4 . 3 . . . 3 . Fabricators 2 | . . . . 1 . . . 1 . . Repair Stations 1 | . . . . . . . . . . 1 Recycling Units 1 | . . . . . . . . 1 . . Scanalyzers . | . . . . . . . . . . . Garrison Access 2 | . . . . 1 . . . 1 . . Total Hacks 61 | . . 25 13 3 6 . . 5 4 5 Successful 25 | . . 8 6 2 1 . . 5 2 1 Failed 36 | . . 17 7 1 5 . . . 2 4 Catastrophic 5 | . . 2 . . 2 . . . . 1 Database Lockouts . | . . . . . . . . . . . Manual 37 | . . 23 14 . . . . . . . Terminals 48 | . . 25 13 . 6 . . . 4 . Fabricators 2 | . . . . 1 . . . 1 . . Repair Stations 5 | . . . . . . . . . . 5 Recycling Units 2 | . . . . . . . . 2 . . Scanalyzers . | . . . . . . . . . . . Garrison Access 4 | . . . . 2 . . . 2 . . Terminal Hacks 6 | . . 1 2 . 1 . . . 2 . Branch Access Points 1 | . . . 1 . . . . . . . Emergency Access Points 1 | . . . . . . . . . 1 . Alert Level 1 | . . . 1 . . . . . . . Zone Layout 1 | . . 1 . . . . . . . . Patrol Navigation 1 | . . . . . . . . . 1 . Security Stations 1 | . . . . . 1 . . . . . Fabricator Hacks 2 | . . . . 1 . . . 1 . . Network Status 2 | . . . . 1 . . . 1 . . Repair Station Hacks 1 | . . . . . . . . . . 1 Scan Component 1 | . . . . . . . . . . 1 Recycling Unit Hacks 2 | . . . . . . . . 2 . . Report Inventory 1 | . . . . . . . . 1 . . Retrieve Components 1 | . . . . . . . . 1 . . Scanalyzer . | . . . . . . . . . . . Garrison Access Hacks 3 | . . . . 1 . . . 2 . . Unlock Access 2 | . . . . 1 . . . 1 . . Coupler Status 1 | . . . . . . . . 1 . . Unauthorized Hacks 11 | . . 7 4 . . . . . . . Terminals 11 | . . 7 4 . . . . . . . Assimilate 1 | . . 1 . . . . . . . . Botnet 10 | . . 6 4 . . . . . . . Fabricators . | . . . . . . . . . . . Repair Stations . | . . . . . . . . . . . Recycling Units . | . . . . . . . . . . . Scanalyzers . | . . . . . . . . . . . Garrison Access . | . . . . . . . . . . . Data Cores Recovered 1 | . . 1 . . . . . . . . Used . | . . . . . . . . . . . Hacking Detections 22 | . . 10 3 1 3 . . 2 2 1 Full Trace Events 5 | . . 3 . . 1 . . . . 1 Feedback Events . | . . . . . . . . . . . Feedback Blocked . | . . . . . . . . . . . Robot Schematics Acquired . | . . . . . . . . . . . Robots Built . | . . . . . . . . . . . Authchips . | . . . . . . . . . . . Time . | . . . . . . . . . . . Total Robot Build Rating . | . . . . . . . . . . . Part Schematics Acquired . | . . . . . . . . . . . Parts Built . | . . . . . . . . . . . Authchips . | . . . . . . . . . . . Time . | . . . . . . . . . . . Total Part Build Rating . | . . . . . . . . . . . Parts Repaired . | . . . . . . . . . . . Time . | . . . . . . . . . . . Parts Recycled . | . . . . . . . . . . . Recycled Matter . | . . . . . . . . . . . Retrieved Matter . | . . . . . . . . . . . Retrieved Components 2 | . . . . . . . . 2 . . Parts Scanalyzed . | . . . . . . . . . . . Part Schematics Acquired . | . . . . . . . . . . . Parts Damaged . | . . . . . . . . . . . Bothacking | -11 -10 -9 -8 -7 -7 -6 -6 -6 -6 -6 ------------ Run | Yrd Mat Mat Mat Fac Gar Fac Was Fac Gar Fac Used RIF Installer 2 | . . . . . 1 . . . 1 . Hotswap 1 | . . . . . . . . . 1 . Robots Hacked 30 | . . . . . . 1 . 6 17 6 Non-combat 4 | . . . . . . . . 2 . 2 Combat 26 | . . . . . . 1 . 4 17 4 Robot Hacks Applied 37 | . . . . . . 1 . 9 18 9 parse_system 2 | . . . . . . . . 1 1 . generate_echo 1 | . . . . . . . . . . 1 start_evac 1 | . . . . . . . . . . 1 find_fabricator 2 | . . . . . . . . 2 . . find_dsf 2 | . . . . . . . . 2 . . link_fov 1 | . . . . . . . . . . 1 focus_fire 1 | . . . . . . . . . . 1 spike_heat 6 | . . . . . . . . 2 2 2 overload_power 1 | . . . . . . . . . 1 . go_dormant 5 | . . . . . . . . . 4 1 formatsys_high 15 | . . . . . . 1 . 2 10 2 Relay Couplers Released 52 | . . . . . 34 . . . 18 . Machine Destruction 52 | . . . . . 34 . . . 18 . Attached 13 | . . . . . 1 2 . . 9 1 Fabnet Peak Effective % . | . . . . . . . . . . . Robots Rewired 4 | . . . . . . . . . 4 . Allies Hacked . | . . . . . . . . . . . Hacks Repelled . | . . . . . . . . . . . Allies | -11 -10 -9 -8 -7 -7 -6 -6 -6 -6 -6 -------- Run | Yrd Mat Mat Mat Fac Gar Fac Was Fac Gar Fac Total Allies 21 | . . 1 . . . 1 1 2 14 2 Largest Group 5 | . . 1 1 . . . 2 2 5 4 Highest-Rated Group 380 | . . 10 10 . . . 63 58 380 342 Highest-Rated Ally 148 | . . 10 10 . . . 32 29 148 148 Total Orders 14 | . . . . . . . . . 14 . STAY 2 | . . . . . . . . . 2 . ROAM 4 | . . . . . . . . . 4 . FOLLOW 5 | . . . . . . . . . 5 . AID 3 | . . . . . . . . . 3 . Ally Attacks 185 | . . . . . . . 21 14 91 59 Total Damage 4463 | . . . . . . . 536 231 2330 1366 Kills 30 | . . . . . . . . 2 16 12 Allies Corrupted . | . . . . . . . . . . . Allies Melted 1 | . . . . . . . . . 1 . Intel | -11 -10 -9 -8 -7 -7 -6 -6 -6 -6 -6 ------- Run | Yrd Mat Mat Mat Fac Gar Fac Was Fac Gar Fac Robot Analysis Total . | . . . . . . . . . . . Derelict Logs Recovered . | . . . . . . . . . . . Drone Launches . | . . . . . . . . . . . Drone Recoveries . | . . . . . . . . . . . Exploration | -11 -10 -9 -8 -7 -7 -6 -6 -6 -6 -6 ------------- Run | Yrd Mat Mat Mat Fac Gar Fac Was Fac Gar Fac Turns Passed 16897 | 67 412 1917 2222 980 7338 82 81 143 2668 987 Spaces Moved 8265 | 41 180 917 800 344 2886 142 134 174 2043 604 Core 28 | 10 . . . . 9 . . . 9 . Treads 3213 | 31 180 917 800 344 693 . . . . 248 Legs 1796 | . . . . . 1796 . . . . . Wheels . | . . . . . . . . . . . Hover 1167 | . . . . . 344 142 134 174 373 . Flight 2061 | . . . . . 44 . . . 1661 356 Fastest Speed 26 | 50 160 160 240 160 29 52 52 52 26 26 Average Speed 153 | 133 160 174 240 239 197 52 52 52 73 96 Slowest Speed 1315 | 160 160 240 240 243 1315 52 52 52 272 250 Overloaded Moves . | . . . . . . . . . . . Propulsion Burnouts . | . . . . . . . . . . . Robots Hopped 4 | . . . . . . . . . . 4 Cave-ins Triggered . | . . . . . . . . . . . Exploration Rate (%) 39 | 4 24 67 44 9 96 2 73 5 99 9 Regions Visited 10 Branch Regions . Pre-discovered Areas . | . . . . . . . . . . . Known Exits Taken 2 | . . . . 1 . . . 1 . . Unknown Exits Taken 4 | 1 1 1 1 . . . . . . . Scrap Searched . | . . . . . . . . . . . Spaces Dug 178 | . . . . . 165 . . . 13 . Terrain Destroyed 312 | . . . . . 168 . . . 86 58 Melee 178 | . . . . . 165 . . . 13 . Projectile 8 | . . . . . 3 . . . 1 4 AOE 126 | . . . . . . . . . 72 54 Terrain Rammed . | . . . . . . . . . . . Walls Destroyed . | . . . . . . . . . . . Machines Disabled . | . . . . . . . . . . . Actions | -11 -10 -9 -8 -7 -7 -6 -6 -6 -6 -6 --------- Run | Yrd Mat Mat Mat Fac Gar Fac Was Fac Gar Fac Total 11057 | 54 253 1137 988 443 3760 150 144 217 3016 895 Wait 1096 | . 28 123 85 13 206 4 10 16 441 170 Move 8250 | 40 179 916 799 344 2885 142 133 173 2042 597 Hop 3 | . . . . . . . . . . 3 Pick Up 232 | 9 11 22 23 17 68 . 1 5 53 23 Fast Attach . | . . . . . . . . . . . Attach 183 | 5 3 7 9 19 58 2 . 1 58 21 Detach 21 | . . . . 2 6 1 . . 11 1 Swap 24 | . . 7 5 4 6 . . . . 2 Drop 134 | . 5 14 15 16 40 . . 5 24 15 Fire 446 | . 27 48 52 28 99 1 . 15 113 63 Melee 427 | . . . . . 363 . . 2 62 . Ram . | . . . . . . . . . . . Kick . | . . . . . . . . . . . Crush . | . . . . . . . . . . . Escape Stasis 231 | . . . . . 29 . . . 202 . Rewire 2 | . . . . . . . . . 2 . Trap . | . . . . . . . . . . . Miscellaneous 8 | . . . . . . . . . 8 . Route ------- -11/Scrapyard -10/Materials (discovered 2 exits: *Mat / [*Min]) -9/Materials (discovered 2 exits: *Mat / [*Min]) -8/Materials (discovered 3 exits: *Fac / Sto x2) -7/Factory -7/Garrison (discovered 3 exits: [*Fac x3]) -6/Factory -6/Waste -6/Factory -6/Garrison (discovered 3 exits: *Fac x3) -6/Factory History --------- Turn | Location | Event 5 | -11/Scrapyard | Discovered new exit (range 15) 68 | -11/Scrapyard | Entered Materials 303 | -10/Materials | Build established: Mutant 361 | -10/Materials | Discovered new exit (range 12) 476 | -10/Materials | Discovered new exit (range 4) 480 | -10/Materials | Entered another Materials area 480 | -9/Materials | Evolved 2 slots: Utility x1, Weapon x1 787 | -9/Materials | Build established: Tank 1583 | -9/Materials | Build established: Scavenger-Tank 1778 | -9/Materials | Discovered new exit (range 13) 1906 | -9/Materials | Discovered new exit (range 11) 2397 | -9/Materials | Entered another Materials area 2397 | -8/Materials | Accompanied by 1 ally 2397 | -8/Materials | Evolved 2 slots: Propulsion x1, Weapon x1 3678 | -8/Materials | Discovered new exit (range 14) 4323 | -8/Materials | Identified exit to Storage 4619 | -8/Materials | Entered Factory 4619 | -7/Factory | Evolved 2 slots: Utility x2 4847 | -7/Factory | Garrison activated, responded to threat 5450 | -7/Factory | Destroyed 8 combat bots 5599 | -7/Factory | Identified exit to Garrison 5599 | -7/Factory | Entered Garrison 5788 | -7/Garrison | Garrison Relay disabled 5893 | -7/Garrison | Build established: Scavenger-Gunner 5953 | -7/Garrison | Triggered checkpoint 5995 | -7/Garrison | Triggered checkpoint 6032 | -7/Garrison | Destroyed 8 combat bots 6046 | -7/Garrison | Lost 7 parts (2n2u3w) 6267 | -7/Garrison | Build established: Scavenger-Tank 6294 | -7/Garrison | Discovered new exit (range 9) 6363 | -7/Garrison | Triggered checkpoint 6435 | -7/Garrison | Garrison Relay disabled 6865 | -7/Garrison | Discovered new exit (range 10) 7323 | -7/Garrison | Triggered checkpoint 7399 | -7/Garrison | Learned Factory security intel 7481 | -7/Garrison | Spotted B-75 Beast 7572 | -7/Garrison | Garrison Relay disabled 7629 | -7/Garrison | Triggered checkpoint 7669 | -7/Garrison | Core integrity fell below 50% 7703 | -7/Garrison | Lost 6 parts (3n2u1w) 7969 | -7/Garrison | Triggered checkpoint 8104 | -7/Garrison | Build established: Scavenger-Mutant 8197 | -7/Garrison | Garrison Relay disabled 8209 | -7/Garrison | Garrison Relay disabled 8281 | -7/Garrison | Garrison Relay disabled 8633 | -7/Garrison | Discovered new exit (range 11) 8725 | -7/Garrison | Triggered checkpoint 8805 | -7/Garrison | Lost 3 parts (1p1n1w) 8853 | -7/Garrison | Triggered checkpoint 8877 | -7/Garrison | Core integrity fell below 20% 8922 | -7/Garrison | Garrison Relay disabled 9365 | -7/Garrison | Triggered checkpoint 9403 | -7/Garrison | Garrison Relay disabled 9781 | -7/Garrison | Triggered checkpoint 9823 | -7/Garrison | Build established: Scavenger-Tank 10006 | -7/Garrison | System corruption reached 10% 10063 | -7/Garrison | Lost 3 parts (1n1u1w) 12115 | -7/Garrison | Installed Relay Interface Framework 12937 | -7/Garrison | Entered Factory 12937 | -6/Factory | Evolved 2 slots: Propulsion x1, Utility x1 12949 | -6/Factory | Discovered new exit (range 5) 13019 | -6/Factory | Sucked down chute 13019 | -6/Factory | Entered Waste 13020 | -6/Waste | Met a frightened Derelict 13029 | -6/Waste | 1 allies followed down the chute 13029 | -6/Waste | Spotted C-40 Crusher 13032 | -6/Waste | Spotted C-40 Crusher 13034 | -6/Waste | EMP discharged 13052 | -6/Waste | Spotted C-40 Crusher 13053 | -6/Waste | Spotted C-40 Crusher 13054 | -6/Waste | Spotted C-40 Crusher 13057 | -6/Waste | Spotted C-40 Crusher 13091 | -6/Waste | Discovered new exit (range 12) 13100 | -6/Waste | Entered Factory 13186 | -6/Factory | Build established: Scavenger-Mutant 13187 | -6/Factory | Identified exit to Garrison 13243 | -6/Factory | Entered Garrison 13243 | -6/Garrison | Accompanied by 2 allies 13345 | -6/Garrison | Triggered checkpoint 13426 | -6/Garrison | Garrison Relay disabled 13446 | -6/Garrison | Garrison Relay disabled 13456 | -6/Garrison | Triggered checkpoint 13532 | -6/Garrison | Spotted B-75 Beast 13584 | -6/Garrison | Lost 4 allies 13611 | -6/Garrison | Triggered checkpoint 13627 | -6/Garrison | Triggered checkpoint 13635 | -6/Garrison | Triggered checkpoint 13667 | -6/Garrison | Triggered checkpoint 13718 | -6/Garrison | Lost 3 parts (2n1u) 13731 | -6/Garrison | Garrison Relay disabled 13805 | -6/Garrison | Discovered new exit (range 11) 13915 | -6/Garrison | Triggered checkpoint 13970 | -6/Garrison | Lost 4 parts (1n1u2w) 14053 | -6/Garrison | Core integrity fell below 50% 14177 | -6/Garrison | Lost 5 parts (3n1u1w) 14185 | -6/Garrison | Destroyed B-75 Beast 14482 | -6/Garrison | Triggered checkpoint 14541 | -6/Garrison | Phase Generator disabled 14571 | -6/Garrison | Lost 3 parts (1p1n1w) 14659 | -6/Garrison | Discovered new exit (range 16) 14677 | -6/Garrison | Triggered checkpoint 14683 | -6/Garrison | Garrison Relay disabled 15201 | -6/Garrison | Expanded RIF knowledge: Hotswap 15264 | -6/Garrison | Discovered new exit (range 13) 15267 | -6/Garrison | Spotted B-86 Titan 15357 | -6/Garrison | Rewired B-90 Cyclops 15367 | -6/Garrison | Rewired B-86 Titan 15579 | -6/Garrison | Triggered checkpoint 15911 | -6/Garrison | Entered Factory 15911 | -6/Factory | Accompanied by 4 allies 16031 | -6/Factory | P-60 Hacker assimilated allied Virus 5c 16261 | -6/Factory | First assault squad dispatched 16373 | -6/Factory | Core integrity fell below 20% 16446 | -6/Factory | Build established: Scavenger-Gunner 16898 | -6/Factory | Destroyed by B-48 Gladiator with Mace Last Messages --------------- Slug penetrates P-60 Hacker. Destroyed Shock Rifle. Arm. Treads destroyed. P-60 Hacker destroyed. Acquired 35 matter. Acquired Powered Hammer. Acquired 3 matter. Acquired Adv. Heat Sink. System corrupted: Energy discharge (-37). System corrupted: Energy discharge (-40). Acquired Imp. Propulsion Shielding. C-30 ARC bursts open, deploying its payload. B-48 Gladiator unfolds itself. I-36 Angel unfolds itself. System corrupted: Energy discharge (-60). B-48 Gladiator destroyed. System corrupted: Thermic Laser failed to cycle. Slug penetrates G-67 Veteran. G-67 Veteran Adv. Heat Sink blasted off. G-67 Veteran knocked back. Map ----- +----------------------------------------------------+ | # #????????????# #???? # | | #### #????????????# #?? # | | ############## # = # | | %| =+ # | | ######## ###"# # ] # | | #??????#+##"##+##?###?? | | T??????# #?????? | | #?????# ! """"#?????? | | ######## """"#?????? | | # """"####### | | # """"## # | | # % """"## "" # | | + """"## "" # | | # """"## T" # | | ############# # ! ## "" # | | ????????????# ########### "" # | | ????????????#k #### # | | ?????????#### + ] # | | ???? + #### " # | | ??????####### g######/## | | ????????????# ## % # | | ????????????######## ## # | | ??????????????????## ## # | | ??????????????????# # # | | ??????????????##### # # | | ?????????? @# # | | ?????????? %b/ # | | ?????????? %# # | | ???????????######## # # | | ??????????????????# # # | | ??????????????????### ### # | | ????????????????????# #?# # | | ????????????????????# #?# # | | ????????????????????+ ??######## | | ????????????????????# ??????????? | | ????????????????????##+??????????? | | ?????????????????????????????????? | | ?????????????????????????????????? | | ?????????????????????????????????? | | ?????????????????????????????????? | | ?????????????????????????????????? | | ?????????????????????????????????? | | ?????????????????????????????????? | | ?????????????????????????????????? | | ?????????????????????????????????? | | ?????????????????????????????????? | | ?????????????????????????????????? | | ?????????????????????????????????? | | ?????????????????????????????????? | | ?????????????????????????????????? | +----------------------------------------------------+ Best States ------------- Heat Dissipation 75 Energy Generation 21 Energy Capacity 290 Matter Stores 300 Matter Capacity 300 Sight Range 16 Terrain Scan Density 10 Armor Coverage 450 Propulsion Shielding 66 Phase Shifting 15 Evasion (%) 73 Targeting Accuracy 24 Recoil Reduction 7 Kinecelleration 40 Relay Coupler Types 3 Relay Coupler Value 94 Item Schematics ----------------- None Robot Schematics ------------------ None Fabricated ------------ Nothing Alien Tech Used ----------------- None Achievements -------------- None Challenges ------------ None Game ------ Seed LightIonLauncher Manual? 0 Play Time 02:11:33 Cumulative 38.6 hours Start 2024.04.25 @ 16:30:19 End 2024.04.26 @ 10:57:13 Sessions 3 Manual Loads 0 Difficulty Rogue Special Mode None Game No. 53 Rogue 53 Adventurer 0 Explorer 0 Win Type - Total 0 Types 0/0/0/0/0/0/0/0/0 Lore% 18 Gallery% 38 Achievement% 33 Wizard Run 0 Options --------- Layout 1 ASCII 0 Keyboard 0 Movement Mouse Keybinds 0 Fullscreen 1 Font 32/SmallcapsGlow Map View 77x35 Zoom Use 0% Tactical HUD 0 Map Filters NONE Filters NONE Steam 1 RUN: d66d1ccf-72fc-45c2-8640-0f025832d9c6